Cogmind - Beta 16 @@@ ROGUE MODE // 2025.11.17 @ 22:25:06 Player: Lis Result: Destroyed by as-30090 with Assembled Blade Performance ------------- Evolutions (0) 0 Regions Visited (2) 400 Robots Destroyed (6) 30 Value Destroyed (155) 155 Prototype IDs (0) 0 Alien Tech Used (0) 0 Bonus (0) 0 TOTAL SCORE: 585 Bonus ------- None Cogmind --------- Core Integrity 0/250 Matter 271/300 Energy 229/250 System Corruption 2% Temperature Cool (0) Movement Walking (120) Location -10/Mines Parts ------- > --- POWER (1) -------- Ion Engine > --- PROPULSION (2) --- Aluminum Leg > --- UTILITY (2) ------ Improved Heat Sink > --- WEAPON (2) ------- Light Assault Rifle Light Assault Rifle > --- INVENTORY (5) ---- Aluminum Leg Sensor Array Grenade Launcher Peak State ------------ > --- POWER ------------ Ion Engine > --- PROPULSION ------- Aluminum Leg Aluminum Leg > --- UTILITY ---------- Small Storage Unit Signal Interpreter > --- WEAPON ----------- Assault Rifle Makeshift Hammer > --- INVENTORY -------- Aluminum Leg Aluminum Leg Improved Heat Sink Large Storage Unit Sensor Array Targeting Computer EM Pulse Gun Grenade Launcher [Rating: 11] Favorites ----------- Power Ion Engine Engine Ion Engine Power Core Light Nuclear Core Propulsion Aluminum Leg Leg Aluminum Leg Utility Small Storage Unit Device Improved Heat Sink Storage Small Storage Unit Processor Signal Interpreter Weapon Assault Rifle Energy Gun EM Pulse Gun Ballistic Gun Assault Rifle Impact Weapon Makeshift Hammer Build | -11 -10 -10 ------- Run | Yrd Mat Min Slots Evolved . | . . . Power . | . . . Propulsion . | . . . Utility . | . . . Weapon . | . . . Parts Attached 17 | 6 5 6 Power 3 | 1 2 . Engine 2 | 1 1 . Core 1 | . 1 . Reactor . | . . . Propulsion 4 | 2 1 1 Treads . | . . . Leg 4 | 2 1 1 Wheel . | . . . Hover . | . . . Flight . | . . . Utility 4 | 1 2 1 Device 1 | . . 1 Storage 1 | 1 . . Processor 2 | . 2 . Hackware . | . . . Protection . | . . . Artifact . | . . . Weapon 6 | 2 . 4 Energy Gun 2 | 1 . 1 Energy Cannon . | . . . Ballistic Gun 3 | 1 . 2 Ballistic Cannon . | . . . Launcher . | . . . Special Weapon . | . . . Impact Weapon 1 | . . 1 Slashing Weapon . | . . . Piercing Weapon . | . . . Special Melee Weapon . | . . . Unidentified Prototypes . | . . . Parts Lost 7 | . . 7 Power . | . . . Propulsion 2 | . . 2 Utility 2 | . . 2 Weapon 3 | . . 3 Highest Loss Streak 7 | . . 7 To Critical Strikes . | . . . Average Backups 6 | 1 6 7 Power . | . . . Propulsion 1 | . 1 2 Utility 2 | . 2 3 Weapon 1 | . 1 1 Tool/Special . | . . . Unused Backups 8 | . 2 6 Power . | . . . Propulsion 2 | . 1 1 Utility 4 | . . 4 Weapon 2 | . 1 1 Tool/Special . | . . . Average Slot Usage (%) 97 | . 98 95 Engine 13 | . 13 14 Leg 27 | . 27 27 Storage 13 | . 14 13 Processor 12 | . 13 12 Energy Gun 8 | . 14 3 Ballistic Gun 13 | . 13 13 Impact Weapon 5 | . . 9 Peak Build Rating 11 | 6 9 11 Average Rating 8 | 4 7 9 On Entrance 4 | . 6 8 Avg Prop Armor Cover (%) . | . . . Naked Turns . | . . . Heaviest Build 15 | 14 14 15 Greatest Support 20 | 20 20 20 Greatest Overweight (x) 4 | 4 1 . Average Overweight (x) . | 1 . . Largest Inventory Capacity 8 | 8 8 8 Average Capacity 7 | 7 8 7 Most Carried 8 | 2 8 8 Average Carried 6 | 1 6 7 Final Capacity 8 | 8 8 5 Final Carried 8 | 2 8 3 Class Distribution -------------------- 100% | Mutant Dominant Class ---------------- Mutant | -10/Materials Mutant | -10/Mines Resources | -11 -10 -10 ----------- Run | Yrd Mat Min Matter Collected 385 | 248 103 34 Remotely . | . . . Salvage Created 221 | . 104 117 Parts 8 | . 7 1 Haulers Intercepted . | . . . Recyclers Shooed . | . . . Parts Field Recycled . | . . . Retrieved Matter . | . . . Parts Self-Destructed . | . . . Prevented . | . . . Parts Restored . | . . . Kills | -11 -10 -10 ------- Run | Yrd Mat Min Combat Hostiles Destroyed 7 | . 4 3 Guns 5 | . 4 1 Classes Destroyed 3 | . 2 1 Swarmer 3 | . 3 . Grunt 3 | . 1 2 Assembled 1 | . . 1 Best Kill Streak 3 | . 3 2 Combat Bots Only 3 | . 3 2 Max Kills in Single Turn 1 | . 1 1 Gunslinging . | . . . Exploded . | . . . Melee . | . . . Uniques/NPCs Destroyed . | . . . Combat | -11 -10 -10 -------- Run | Yrd Mat Min Hostile Shots Fired 60 | . 12 48 Missed 14 | . 4 10 Hits 46 | . 8 38 Melee 16 | . . 16 Projectile 30 | . 8 22 AOE 6 | . . 6 Damage Taken 983 | . 66 917 Core 271 | . 19 252 Absorbed by Shields . | . . . Core Remaining (%) 100 | 100 . . Volleys Fired 28 | . 7 21 Largest 2 | . 2 2 Hottest 60 | . 60 60 Shots Fired 39 | . 14 25 Gun 39 | . 14 25 Cannon . | . . . Launcher . | . . . Special . | . . . Kinetic 18 | . 7 11 Thermal . | . . . Explosive . | . . . Electromagnetic 21 | . 7 14 Robot Hit Streak 3 | . 3 3 Robot Miss Streak 3 | . 2 3 Penetration Max . | . . . Secondary Targets 1 | . 1 . Max Gunslinging Chain 1 | . 1 . Shots Hit Robots 24 | . 8 16 Core Hits 8 | . 5 3 Critical Kills . | . . . Critical Parts Destroyed 1 | . . 1 Critical Strikes 1 | . . 1 Smash 1 | . . 1 Melee Attacks 6 | . . 6 Impact 6 | . . 6 Slashing . | . . . Piercing . | . . . Sneak Attacks . | . . . Combat Hostiles . | . . . Follow-up Attacks . | . . . Damage Inflicted 379 | . 94 285 Guns 224 | . 94 130 Cannons . | . . . Explosions . | . . . Melee 155 | . . 155 Ramming . | . . . Kinetic 112 | . 39 73 Thermal . | . . . Explosive . | . . . Electromagnetic 112 | . 55 57 Impact 155 | . . 155 Slashing . | . . . Piercing . | . . . Highest Corruption 2 | . . 2 Average Corruption 2 | . . 2 Corruption Purged . | . . . Corruption Blocked . | . . . Effects 1 | . . 1 Message Errors 1 | . . 1 Overload Shots . | . . . Overflow Damage 49 | . . 49 Projectiles . | . . . Explosions . | . . . Melee 49 | . . 49 Knockbacks 1 | . . 1 Impact 1 | . . 1 Kinetic . | . . . Secondary . | . . . Self-Inflicted Damage . | . . . Shots . | . . . Rammed . | . . . Targets Rammed . | . . . Kicked . | . . . Crushed . | . . . Highest Temperature . | . . . Average Temperature . | . . . Received Heat Transfer 24 | . . 24 Siege Activations . | . . . Martial Activations . | . . . Shielding Activations . | . . . Robots Disrupted . | . . . Combat Hostiles . | . . . Robots Corrupted 2 | . . 2 Combat Hostiles 2 | . . 2 Parts Fried 1 | . . 1 Impact Corruptions 2 | . . 2 Robots Melted . | . . . Combat Hostiles . | . . . Parts Melted . | . . . Heat Transferred . | . . . Parts Sabotaged . | . . . Parts Stolen . | . . . Parts Stripped . | . . . Power Chain Reactions . | . . . Alert | -11 -10 -10 ------- Run | Yrd Mat Min Maximum Alert Level . | . . . Low Security (%) 100 | 100 100 100 Level 1 . | . . . Level 2 . | . . . Level 3 . | . . . Level 4 . | . . . Level 5 . | . . . High Security . | . . . Max Security . | . . . Peak Influence 71 | . 71 40 Initial . | . . . Average 8 | . 12 6 Influence Increases 205 | . 95 110 Destroy 0b10 Robot/C 120 | . 80 40 Destroy Leader 20 | . 10 10 Successful Hack 4 | . 4 . Disable Machine 15 | . . 15 Destroy Structure 1 | . 1 . Lose Combat Pursuer 45 | . . 45 Influence Decreases 205 | . 95 110 Time Decay 185 | . 95 90 Lost Part 15 | . . 15 Lost Ally 5 | . . 5 Squads Dispatched 1 | . 1 . Investigation . | . . . Extermination . | . . . Reinforcement 1 | . 1 . Assault . | . . . Garrison . | . . . Intercept . | . . . Searches Triggered . | . . . Construction Impeded . | . . . Haulers Reinforced . | . . . Active Scanning Responses . | . . . Cargo Convoy Interrupts . | . . . Stealth | -11 -10 -10 --------- Run | Yrd Mat Min Distress Signals . | . . . Communications Jammed . | . . . Distress Signals . | . . . Times Spotted 23 | . 4 19 Peak Tracking Total 5 | . 3 5 Tactical Retreats 4 | . . 4 Traps | -11 -10 -10 ------- Run | Yrd Mat Min Traps Triggered 1 | . 1 . Indirectly . | . . . Trap Hack Attempts . | . . . Triggered . | . . . Disarmed . | . . . Reprogrammed . | . . . Reused . | . . . Traps Extracted . | . . . Installed . | . . . Triggered . | . . . Machines | -11 -10 -10 ---------- Run | Yrd Mat Min Machines Disabled 1 | . . 1 Max in Single Turn 1 | . . 1 Machines Repaired . | . . . Machines Dismantled . | . . . Machines Sabotaged . | . . . Overloaded Fab Kills . | . . . Hacking | -11 -10 -10 --------- Run | Yrd Mat Min Machines Accessed 4 | . 4 . Terminals 2 | . 2 . Fabricators . | . . . Repair Stations 1 | . 1 . Recycling Units 1 | . 1 . Scanalyzers . | . . . Garrison Access . | . . . Total Hacks 6 | . 6 . Successful 3 | . 3 . Failed 3 | . 3 . Catastrophic . | . . . Database Lockouts . | . . . Manual 1 | . 1 . Terminals 3 | . 3 . Fabricators . | . . . Repair Stations 2 | . 2 . Recycling Units 1 | . 1 . Scanalyzers . | . . . Garrison Access . | . . . Terminal Hacks 1 | . 1 . Locate Traps 1 | . 1 . Fabricator Hacks . | . . . Repair Station Hacks 1 | . 1 . Scan Component 1 | . 1 . Recycling Unit Hacks 1 | . 1 . Retrieve Components 1 | . 1 . Scanalyzer . | . . . Garrison Access Hacks . | . . . Unauthorized Hacks . | . . . Terminals . | . . . Fabricators . | . . . Repair Stations . | . . . Recycling Units . | . . . Scanalyzers . | . . . Garrison Access . | . . . Data Cores Recovered . | . . . Used . | . . . Hacking Detections 1 | . 1 . Full Trace Events . | . . . Feedback Events . | . . . Feedback Blocked . | . . . Robot Schematics Acquired . | . . . Robots Built . | . . . Authchips . | . . . Time . | . . . Total Robot Build Rating . | . . . Part Schematics Acquired . | . . . Parts Built . | . . . Authchips . | . . . Time . | . . . Total Part Build Rating . | . . . Part Studies Acquired . | . . . Parts Repaired . | . . . Time . | . . . Parts Recycled . | . . . Recycled Matter . | . . . Retrieved Matter . | . . . Retrieved Components . | . . . Parts Scanalyzed . | . . . Part Schematics Acquired . | . . . Parts Damaged . | . . . Bothacking | -11 -10 -10 ------------ Run | Yrd Mat Min Used RIF Installer . | . . . Robots Hacked . | . . . Non-combat . | . . . Combat . | . . . Robot Hacks Applied . | . . . Relay Couplers Released . | . . . Fabnet Peak Effective % . | . . . Robots Rewired . | . . . Allies Hacked . | . . . Hacks Repelled . | . . . Allies | -11 -10 -10 -------- Run | Yrd Mat Min Total Allies 3 | . . 3 Largest Group 3 | . . 3 Highest-Rated Group 40 | . . 40 Highest-Rated Ally 16 | . . 16 Total Orders 3 | . . 3 STAY 1 | . . 1 ROAM 1 | . . 1 FOLLOW 1 | . . 1 Ally Attacks 3 | . . 3 Total Damage 43 | . . 43 Kills . | . . . Allies Corrupted . | . . . Allies Melted . | . . . Intel | -11 -10 -10 ------- Run | Yrd Mat Min Active Infowar (turns) . | . . . Robot Analysis Total . | . . . Derelict Logs Recovered 1 | . . 1 Drone Launches . | . . . Drone Recoveries . | . . . Exploration | -11 -10 -10 ------------- Run | Yrd Mat Min Turns Passed 995 | 69 453 473 Spaces Moved 690 | 39 326 325 Core 17 | 17 . . Treads . | . . . Legs 673 | 22 326 325 Wheels . | . . . Hover . | . . . Flight . | . . . Fastest Speed 50 | 50 120 120 Average Speed 121 | 150 120 120 Slowest Speed 250 | 250 190 120 Overloaded Moves . | . . . Propulsion Burnouts . | . . . Robots Hopped . | . . . Potential Cave-ins . | . . . Cave-ins Triggered . | . . . Exploration Rate (%) 48 | 3 65 76 Regions Visited 2 Branch Regions 1 Pre-discovered Areas . | . . . Known Exits Taken 1 | . 1 . Unknown Exits Taken 1 | 1 . . Scrap Searched 2 | . . 2 Spaces Dug . | . . . Terrain Destroyed . | . . . Melee . | . . . Projectile . | . . . AOE . | . . . Terrain Rammed . | . . . Walls Destroyed . | . . . Machines Disabled . | . . . Actions | -11 -10 -10 --------- Run | Yrd Mat Min Total 795 | 46 372 377 Wait 36 | . 19 17 Move 688 | 38 325 325 Hop . | . . . Pick Up 13 | 2 10 1 Fast Attach 11 | 6 3 2 Attach 4 | . 1 3 Detach . | . . . Swap 4 | . 3 1 Drop 5 | . 4 1 Fire 28 | . 7 21 Melee 6 | . . 6 Ram . | . . . Kick . | . . . Crush . | . . . Escape Stasis . | . . . Rewire . | . . . Trap . | . . . Miscellaneous . | . . . Route ------- -11/Scrapyard -10/Materials (discovered 3 exits: *Mat / *Min x2) -10/Mines (discovered 1 exit: *Mat) History --------- Turn | Location | Event 46 | -11/Scrapyard | Discovered new exit (range 15) 70 | -11/Scrapyard | Entered Materials 245 | -10/Materials | Discovered new exit (range 11) 322 | -10/Materials | Build established: Mutant 354 | -10/Materials | Discovered new exit (range 15) 379 | -10/Materials | Identified exit to Materials 502 | -10/Materials | Discovered new exit (range 13) 515 | -10/Materials | Identified exit to Mines 523 | -10/Materials | Entered Mines 594 | -10/Mines | A weapon hastily lodged in a ceiling crevice suddenly fell to the ground 626 | -10/Mines | Found a hidden stash of uninstalled traps 700 | -10/Mines | Learned Materials trap positions 851 | -10/Mines | Assisted by bots powering up and referring to "LRC-V3" 902 | -10/Mines | Assembled infested the area 905 | -10/Mines | Received a Rocket Launcher from a helpful Derelict 907 | -10/Mines | Assisted by a Guerilla fighting off Assembled 910 | -10/Mines | Discovered exit to Materials (range 7) 939 | -10/Mines | Core integrity fell below 50% 942 | -10/Mines | Lost 3 allies 986 | -10/Mines | Core integrity fell below 20% 996 | -10/Mines | Destroyed by as-30090 with Assembled Blade Last Messages --------------- 00958_ R-06 Scavenger collects Heat Sink. 00960_ K-01 Serf collects debris. 00961_ The unstable cave ceiling collapses. 00961_ U-05 Engineer builds a Wall. 00965_ U-05 Engineer lays Concrete. 00966_ U-05 Engineer builds a Wall. 00969_ Core Extractor disabled. 00971_ U-05 Engineer builds a Wall. 00974_ EM Pulse Gun destroyed. 00974_ Aluminum Leg destroyed. 00975_ U-05 Engineer lays Concrete. 00975_ K-01 Serf cleans the Matter Pump. 00975_ Acquired Lgt. Assault Rifle. 00976_ U-05 Engineer builds a Wall. 00979_ K-01 Serf cleans the Matter Pump. 00979_ Sml. Storage Unit destroyed. 00982_ Acquired 7 matter. 00983_ K-01 Serf cleans the Matter Pump. 00988_ Acquired Lgt. Assault Rifle. 00994_ Aluminum Leg destroyed. Map ----- +----------------------------------------------------+ | ?????????????????????????????????????????????????? | | ?????????????????????????????????????????????????? | | ?????????????????????????????????????????????????? | | ?????????????????????????????????????????????????? | | ????????????????????????????####?????????????????? | | ???????????????????????????# #?????????????????? | | ?????????????????????????# ?????????????????? | | ????????????????????????# ??????????????????? | | ??????????????????????## ??????????????????? | | ?????????????????????## ???????????????????? | | ????????????????????## """ #???????????????????? | | ???????????????????## " " #???????????????????? | | ?????????????????### " " #???????????????????? | | ??????????? =## #???????????????????? | | ???????????????%= #??????????####?????? | | ??????????????????????# #?????????## ##????? | | ??????????????????????## = ##????????## #????? | | ???????????????????????##[###????????## ###### | | ????????????????????????#%#?????????## | | ????????????????????????#=#??????#### | | ??????????????????????###%#??????# ###### | | ??????????????????????# #=#?###### ## ##????? | | ???????????????????????##a### ### #??#### | | ??????????????????????###a%= """ #?# ## #??# | | ?????????????????????##%#a## """ ### ## #??# | | ?????????????????????# ##@# # """ ## ## #??# | | ?????????????????????# #r# # ## ## #### | | ????????????????# # # # # ### ### ## | | ???????????????# !< # # # ## ##?# ######## | | ?????? ???????# ! # # ## ####%#??????### | | ?????# ?????####= # #% ## % #?####???? | | ????# ?????# / # # # ### ######?# ##??? | | ???? ?????# ####r## ##?# ######## #### | | ???? ?????# ## #???# ####??# # | | ???? ?????# ####????# #?????# | | ????# ?????# #???????#%#?????######### ## # | | ????# ?????# #??????? ??????????????# #?? # | | ????# #?????# ##?????? ??????????????# #??# # | | ????# #?????# ??????? ??????????????# #### # | | ????# #?????# #??#???? ?????########## ## # | | ????# #?????# #? #???? ?????# % # | | ????# #????## ## ##??## ?????#[! | | ????# #???## ##### #???# ###### ### | | ????# #???# #???# #????## ####?? | | ????# #??## #### #???# #?????## ##????? | | ????# #?## ##?????????# #??????# #?????? | | ????# ### #####??????????# #?????? ?????? | | ????# ##??????????????# #????? ## #????? | | ????# ##???????????????# ????# ?? #????? | | ???## ## #?????????? ???? ????#??? #????? | +----------------------------------------------------+ Best States ------------- Heat Dissipation 25 Energy Generation 14 Energy Capacity 250 Matter Stores 300 Matter Capacity 300 Sight Range 16 Terrain Scan Density 10 Evasion (%) 55 Targeting Accuracy 5 Item Schematics ----------------- None Robot Schematics ------------------ None Fabricated ------------ Nothing Repaired ---------- Nothing Studied --------- None Alien Tech Used ----------------- None Achievements -------------- None Challenges ------------ None Game ------ Seed FrostCloakDriveblaster Manual? 0 Play Time 00:22:56 Cumulative 14.5 hours Start 2025.11.17 @ 21:51:27 End 2025.11.17 @ 22:25:06 Sessions 1 Manual Loads 0 Difficulty Rogue Special Mode None Game No. 17 Rogue 17 Adventurer 0 Explorer 0 Win Type - Total 0 Types 0/0/0/0/0/0/0/0/0/0 Lore% 2 Gallery% 16 Achievement% 13 Wizard Run 0 Options --------- Layout 0 ASCII 1 Keyboard 1 Movement Numpad Keybinds 0 Fullscreen 1 Font 24/Smallcaps Map View 113x50 Zoom Use 0% Tactical HUD 1 Map Filters NONE Filters NONE Steam 1 RUN: ac41542a-0583-49fa-baae-c4a1f9d70de6